Workbook

Sheet Total marin
C1: Marin belastning uden belastning til fersk
A3: Vandområde | C3: Kalveboderne | D3: Sydhavnen | E3: Inderhavnen | F3: Nordhavnen | G3: Svanemølle-bugten | H3: Østhavnen | I3: Øresund | J3: SUM
A4: Reduceret areal ha | B4: Status | C4: 379.5733156 | D4: 976.857137 | E4: 342.5643117 | F4: 322.907165 | G4: 574.1418674 | H4: 382.943275 | I4: 0 | J4: =SUM(Tabel11821[[#This Row],[Kalveboderne]:[Øresund]]) -> 2978.987072
B5: Plan | C5: 384.0858156 | D5: 1072.574637 | E5: 345.3143117 | F5: 337.667165 | G5: 581.7468674 | H5: 382.943275 | I5: 0 | J5: =SUM(Tabel11821[[#This Row],[Kalveboderne]:[Øresund]]) -> 3104.332072
B6: Strategi | C6: 469.8233156 | D6: 1164.312137 | E6: 468.2309784 | F6: 434.507165 | G6: 726.2418674 | H6: 382.943275 | I6: 141.3333333 | J6: =SUM(Tabel11821[[#This Row],[Kalveboderne]:[Øresund]]) -> 3787.392072
A7: Maks udledning l/s | B7: Status | C7: 15270 | D7: 53740 | E7: 39207 | F7: 23720.74 | G7: 23790 | H7: 4060 | I7: 1500 | J7: =SUM(Tabel11821[[#This Row],[Kalveboderne]:[Øresund]]) -> 161287.74
B8: Plan | C8: 15540 | D8: 74080 | E8: 39377 | F8: 24610.74 | G8: 24250 | H8: 4060 | I8: 1500 | J8: =SUM(Tabel11821[[#This Row],[Kalveboderne]:[Øresund]]) -> 183417.74
B9: Strategi | C9: 20690 | D9: 64990 | E9: 46747 | F9: 30420.74 | G9: 32920 | H9: 4060 | I9: 9980 | J9: =SUM(Tabel11821[[#This Row],[Kalveboderne]:[Øresund]]) -> 209807.74
A10: Overløbshyppighed antal/år | B10: Status | C10: 7 | D10: 31.1 | E10: 71.8 | F10: 11 | G10: 25 | H10: 1 | I10: 15 | J10: =SUM(Tabel11821[[#This Row],[Kalveboderne]:[Øresund]]) -> 161.9
B11: Plan | C11: 2 | D11: 17.3 | E11: 71.8 | F11: 10 | G11: 25 | H11: 1 | I11: 15 | J11: =SUM(Tabel11821[[#This Row],[Kalveboderne]:[Øresund]]) -> 142.1
B12: Strategi | C12: 0.8333333333 | D12: 7.421111111 | E12: 32.85 | F12: 5 | G12: 9 | H12: 0.5 | I12: 15 | J12: =SUM(Tabel11821[[#This Row],[Kalveboderne]:[Øresund]]) -> 70.60444444
A13: Vand m3/år | B13: Status | C13: 98882.09664 | D13: 475531.3673 | E13: 609314.2903 | F13: 377086.3623 | G13: 421256.2921 | H13: 10047.20203 | I13: 105000 | J13: =SUM(Tabel11821[[#This Row],[Kalveboderne]:[Øresund]]) -> 2097117.611
B14: Plan | C14: 55839.65497 | D14: 202153.9723 | E14: 619720.4305 | F14: 437995.3716 | G14: 445552.2921 | H14: 10047.20203 | I14: 105000 | J14: =SUM(Tabel11821[[#This Row],[Kalveboderne]:[Øresund]]) -> 1876308.924
B15: Strategi | C15: 338844.4848 | D15: 732216.9447 | E15: 906261.7548 | F15: 639679.5304 | G15: 621743.9067 | H15: 6972.362135 | I15: 545453.75 | J15: =SUM(Tabel11821[[#This Row],[Kalveboderne]:[Øresund]]) -> 3791172.733
A16: COD kg/år | B16: Status | C16: 6648.125463 | D16: 28434.65058 | E16: 69117.98645 | F16: 43555.73797 | G16: 22287.36673 | H16: 892.1123253 | I16: 5413250 | J16: =SUM(Tabel11821[[#This Row],[Kalveboderne]:[Øresund]]) -> 5584185.98
B17: Plan | C17: 7246.003379 | D17: 17902.35973 | E17: 71288.29346 | F17: 55511.18844 | G17: 28122.16673 | H17: 892.1123253 | I17: 3342250 | J17: =SUM(Tabel11821[[#This Row],[Kalveboderne]:[Øresund]]) -> 3523212.124
B18: Strategi | C18: 54076.9759 | D18: 114469.8034 | E18: 134247.6373 | F18: 100819.4299 | G18: 91772.97507 | H18: 757.8579416 | I18: 3102272.688 | J18: =SUM(Tabel11821[[#This Row],[Kalveboderne]:[Øresund]]) -> 3598417.367
A19: Total N kg/år | B19: Status | C19: 321.6929664 | D19: 1287.470036 | E19: 4029.702903 | F19: 2550.639623 | G19: 931.5709207 | H19: 48.44002033 | I19: 804210 | J19: =SUM(Tabel11821[[#This Row],[Kalveboderne]:[Øresund]]) -> 813379.5165
B20: Plan | C20: 435.6080831 | D20: 975.1923892 | E20: 4170.515183 | F20: 3320.457642 | G20: 1316.162921 | H20: 48.44002033 | I20: 566210 | J20: =SUM(Tabel11821[[#This Row],[Kalveboderne]:[Øresund]]) -> 576476.3762
B21: Strategi | C21: 3378.398181 | D21: 7127.394336 | E21: 8280.490748 | F21: 6285.607804 | G21: 5656.999067 | H21: 43.70762135 | I21: 526090.9075 | J21: =SUM(Tabel11821[[#This Row],[Kalveboderne]:[Øresund]]) -> 556863.5053
A22: Total P kg/år | B22: Status | C22: 80.4232416 | D22: 321.8675091 | E22: 1007.425726 | F22: 637.6599057 | G22: 232.8927302 | H22: 12.11000508 | I22: 133852.5 | J22: =SUM(Tabel11821[[#This Row],[Kalveboderne]:[Øresund]]) -> 136144.8791
B23: Plan | C23: 108.9020208 | D23: 239.7980973 | E23: 1042.628796 | F23: 830.1144104 | G23: 329.0407302 | H23: 12.11000508 | I23: 55052.5 | J23: =SUM(Tabel11821[[#This Row],[Kalveboderne]:[Øresund]]) -> 57615.09406
B24: Strategi | C24: 844.5995454 | D24: 1781.848584 | E24: 2070.122687 | F24: 1571.401951 | G24: 1414.249767 | H24: 10.92690534 | I24: 51472.72688 | J24: =SUM(Tabel11821[[#This Row],[Kalveboderne]:[Øresund]]) -> 59165.87631
